fUSD/lending_fUSD_20241122
["ID","MTS","AMOUNT","RATE_DAILY","PERIOD"]
[342991354,1732265434780,-341.0,0.0009589,120]
[342991355,1732265434789,-341.0,0.0009589,120]
[342991356,1732265434799,-341.0,0.0009589,120]
[342991357,1732265434809,-341.0,0.0009589,120]
[342991358,1732265434818,-341.0,0.0009589,120]
[342991359,1732265434828,-341.0,0.0009589,120]
[342991360,1732265434837,-341.0,0.0009589,120]
[342991361,1732265434846,-341.0,0.0009589,120]
[342991362,1732265434855,-341.0,0.0009589,120]
[342991363,1732265434864,-341.0,0.0009589,120]
[342991364,1732265434873,-341.0,0.0009589,120]
[342991365,1732265434882,-341.0,0.0009589,120]
[342991366,1732265434892,-341.0,0.0009589,120]
[342991367,1732265434901,-341.0,0.0009589,120]
[342991368,1732265434910,-341.0,0.0009589,120]
[342991369,1732265434920,-341.0,0.0009589,120]
[342991370,1732265434929,-341.0,0.0009589,120]
[342991371,1732265434938,-341.0,0.0009589,120]
[342991372,1732265434952,-341.0,0.0009589,120]
[342991373,1732265434966,-341.0,0.0009589,120]
[342991374,1732265434975,-341.0,0.0009589,120]
[342991375,1732265434984,-341.0,0.0009589,120]
[342991376,1732265434995,-341.0,0.0009589,120]
[342991377,1732265435004,-341.0,0.0009589,120]
[342991378,1732265435014,-341.0,0.0009589,120]
[342991379,1732265435023,-341.0,0.0009589,120]
[342991380,1732265435033,-341.0,0.0009589,120]
[342991381,1732265435042,-341.0,0.0009589,120]
[342991382,1732265435052,-341.0,0.0009589,120]
[342991383,1732265435061,-341.0,0.0009589,120]
[342991384,1732265435070,-341.0,0.0009589,120]
[342991385,1732265435079,-341.0,0.0009589,120]
[342991386,1732265435088,-341.0,0.0009589,120]
[342991387,1732265435097,-341.0,0.0009589,120]
[342991388,1732265435107,-506.48902107,0.00096103,120]
[342991389,1732265435118,-157.86,0.00096204,120]
[342991390,1732265435129,-10000.0,0.0009629,120]
[342991391,1732265435139,-8163.33005201,0.00096458,15]
[342991392,1732265435148,-500.0,0.000969,120]
[342991393,1732265435157,-8482.94945778,0.000969,120]
[342991394,1732265435167,-126706.0,0.00097,120]
[342991395,1732265435176,-880.03662322,0.00097027,120]
[342991396,1732265435186,-210.6,0.00097443,2]
[342991397,1732265435196,-500.0,0.00097705,120]
[342991398,1732265435206,-377.62,0.00097705,120]
[342991399,1732265435215,-152.43,0.00097705,30]
[342991400,1732265435224,-150.98,0.0009799,120]
[342991401,1732265435233,-15931.24552456,0.00098,120]
[342991402,1732265435243,-573.0,0.00098,75]
[342991403,1732265435252,-200.0,0.00098,45]
[342991404,1732265435261,-200.0,0.00098,120]
[342991405,1732265435271,-2873.2714,0.0009801,120]
[342991406,1732265435281,-8163.33005201,0.00098179,15]
[342991407,1732265435291,-457.51,0.00098226,120]
[342991408,1732265435303,-10000.0,0.00098322,120]
[342991409,1732265435312,-804.71147586,0.00098328,120]
[342991410,1732265435322,-435.71240222,0.00098419,120]
[342991411,1732265435331,-201.5955293,0.00098578,120]
[342991412,1732265435341,-201.5955293,0.00098583,120]
[342991413,1732265435350,-804.71147586,0.00098587,120]
[342991414,1732265435359,-636.28,0.0009863,120]
[342991415,1732265435369,-500.0,0.0009863,120]
[342991416,1732265435379,-500.0,0.0009863,120]
[342991417,1732265435388,-500.0,0.0009863,120]
[342991418,1732265435397,-500.0,0.0009863,120]
[342991419,1732265435406,-500.0,0.0009863,120]
[342991420,1732265435416,-508.15839059,0.0009863,120]
[342991421,1732265435425,-574.04,0.0009863,120]
[342991422,1732265435434,-500.0,0.0009863,120]
[342991423,1732265435443,-457.5693323,0.0009863,120]
[342991424,1732265435452,-500.0,0.0009863,120]
[342991425,1732265435461,-500.0,0.0009863,120]
[342991426,1732265435470,-500.0,0.0009863,120]
[342991427,1732265435480,-431.03,0.0009863,120]
[342991428,1732265435489,-500.0,0.0009863,120]
[342991429,1732265435498,-434.73,0.0009863,120]
[342991430,1732265435507,-500.0,0.0009863,120]
[342991431,1732265435517,-500.0,0.0009863,120]
[342991432,1732265435526,-500.0,0.0009863,120]
[342991433,1732265435535,-500.0,0.0009863,120]
[342991434,1732265435546,-222.65,0.0009863,120]
[342991435,1732265435556,-500.0,0.0009863,120]
[342991436,1732265435565,-500.0,0.0009863,120]
[342991437,1732265435575,-500.0,0.0009863,120]
[342991438,1732265435584,-635.61,0.0009863,120]
[342991439,1732265435594,-501.64544737,0.0009863,120]
[342991440,1732265435603,-500.0,0.0009863,120]
[342991441,1732265435612,-299.41,0.0009863,120]
[342991442,1732265435622,-500.0,0.0009863,120]
[342991443,1732265435631,-500.0,0.0009863,120]
[342991444,1732265435640,-500.0,0.0009863,120]
[342991445,1732265435650,-556.61,0.0009863,120]
[342991446,1732265435659,-500.0,0.0009863,120]
[342991447,1732265435669,-496.54145999,0.0009863,120]
[342991448,1732265435678,-500.0,0.0009863,120]
[342991449,1732265435688,-196.46,0.0009863,120]
[342991450,1732265435698,-500.0,0.0009863,120]
[342991451,1732265435792,-500.0,0.0009863,120]
[342991452,1732265435805,-500.0,0.0009863,120]
[342991453,1732265435815,-500.0,0.0009863,120]
[342991454,1732265435824,-500.0,0.0009863,120]
[342991455,1732265435834,-500.0,0.0009863,120]
[342991456,1732265435843,-500.0,0.0009863,120]
[342991457,1732265435853,-500.0,0.0009863,120]
[342991458,1732265435862,-500.0,0.0009863,120]
[342991459,1732265435872,-500.0,0.0009863,120]
[342991460,1732265435881,-500.0,0.0009863,120]
[342991461,1732265435890,-500.0,0.0009863,120]
[342991462,1732265435900,-511.49632108,0.0009863,120]
[342991463,1732265435909,-518.01759178,0.0009863,120]
[342991464,1732265435918,-500.0,0.0009863,120]
[342991465,1732265435928,-500.0,0.0009863,120]
[342991466,1732265435937,-500.0,0.0009863,120]
[342991467,1732265435948,-326.09643839,0.0009863,120]
[342991468,1732265435959,-277.18954642,0.0009863,120]
[342991469,1732265435968,-531.31446816,0.0009863,120]
[342991470,1732265435978,-501.08754887,0.0009863,120]
[342991471,1732265435987,-500.0,0.0009863,120]
[342991472,1732265435998,-500.0,0.0009863,120]
[342991473,1732265436007,-501.25246467,0.0009863,120]
[342991474,1732265436017,-502.06256067,0.0009863,120]
[342991475,1732265436026,-500.0,0.0009863,120]
[342991476,1732265436036,-500.0,0.0009863,120]
[342991477,1732265436048,-500.0,0.0009863,120]
[342991478,1732265436058,-500.0,0.0009863,120]
[342991479,1732265436067,-192.24254851,0.0009863,120]
[342991480,1732265436075,-629.70635517,0.0009863,120]
[342991481,1732265436085,-500.0,0.0009863,120]
[342991482,1732265436094,-500.0,0.0009863,120]
[342991483,1732265436102,-563.04304228,0.0009863,120]
[342991484,1732265436111,-500.0,0.0009863,120]
[342991485,1732265436121,-500.0,0.0009863,120]
[342991486,1732265436130,-500.0,0.0009863,120]
[342991487,1732265436139,-500.0,0.0009863,120]
[342991488,1732265436148,-500.0,0.0009863,120]
[342991489,1732265436157,-500.0,0.0009863,120]
[342991490,1732265436166,-319.59,0.0009863,120]
[342991491,1732265436175,-500.0,0.0009863,120]
[342991492,1732265436184,-500.0,0.0009863,120]
[342991493,1732265436193,-2495.31,0.0009863,120]
[342991494,1732265436202,-2495.31,0.0009863,120]
[342991495,1732265436211,-500.0,0.0009863,120]
[342991496,1732265436220,-500.0,0.0009863,120]
[342991497,1732265436230,-500.0,0.0009863,120]
[342991498,1732265436239,-320.56,0.0009863,120]
[342991499,1732265436248,-500.0,0.0009863,120]
[342991500,1732265436257,-500.0,0.0009863,120]
[342991501,1732265436267,-500.0,0.0009863,120]
[342991502,1732265436275,-500.0,0.0009863,120]
[342991503,1732265436284,-500.0,0.0009863,120]
[342991504,1732265436293,-500.0,0.0009863,120]
[342991505,1732265436303,-500.0,0.0009863,120]
[342991506,1732265436312,-500.0,0.0009863,120]
[342991507,1732265436321,-228.13,0.0009863,120]
[342991508,1732265436331,-500.0,0.0009863,120]
[342991509,1732265436340,-500.0,0.0009863,120]
[342991510,1732265436349,-500.0,0.0009863,120]
[342991511,1732265436358,-500.0,0.0009863,120]
[342991512,1732265436367,-500.0,0.0009863,120]
[342991513,1732265436377,-831.84,0.0009863,120]
[342991514,1732265436387,-831.84,0.0009863,120]
[342991515,1732265436396,-500.0,0.0009863,120]
[342991516,1732265436405,-500.0,0.0009863,120]
[342991517,1732265436414,-500.0,0.0009863,120]
[342991518,1732265436423,-582.03,0.0009863,120]
[342991519,1732265436432,-500.0,0.0009863,120]
[342991520,1732265436441,-151.63,0.0009863,120]
[342991521,1732265436450,-500.0,0.0009863,120]
[342991522,1732265436459,-507.04540705,0.0009863,120]
[342991523,1732265436469,-500.0,0.0009863,120]
[342991524,1732265436478,-293.59088225,0.0009863,120]
[342991525,1732265436487,-500.0,0.0009863,120]
[342991526,1732265436496,-500.0,0.0009863,120]
[342991527,1732265436506,-500.0,0.0009863,120]
[342991528,1732265436516,-500.0,0.0009863,120]
[342991529,1732265436525,-500.0,0.0009863,120]
[342991530,1732265436535,-500.0,0.0009863,120]
[342991531,1732265436543,-500.0,0.0009863,120]
[342991532,1732265436553,-500.0,0.0009863,120]
[342991533,1732265436562,-350.0,0.0009863,120]
[342991534,1732265436572,-500.0,0.0009863,90]
[342991535,1732265436582,-500.0,0.0009863,120]
[342991536,1732265436591,-500.0,0.0009863,120]
[342991537,1732265436600,-401.66,0.0009863,90]
[342991538,1732265436610,-181.68,0.0009863,120]
[342991539,1732265436619,-500.0,0.0009863,120]
[342991540,1732265436628,-500.0,0.0009863,120]
[342991541,1732265436638,-410.29,0.0009863,120]
[342991542,1732265436647,-500.0,0.0009863,120]
[342991543,1732265436656,-500.0,0.0009863,120]
[342991544,1732265436666,-500.0,0.0009863,120]
[342991545,1732265436675,-500.0,0.0009863,120]
[342991546,1732265436684,-500.0,0.0009863,120]
[342991547,1732265436693,-311.64789617,0.0009863,120]
[342991548,1732265436703,-180.22823063,0.0009863,120]
[342991549,1732265436712,-503.04270522,0.0009863,120]
[342991550,1732265436721,-502.65128779,0.0009863,120]
[342991551,1732265436731,-500.0,0.0009863,120]
[342991552,1732265436741,-500.0,0.0009863,120]
[342991553,1732265436750,-642.15,0.0009863,120]
[342991554,1732265436760,-500.0,0.0009863,120]
[342991555,1732265436769,-500.0,0.0009863,120]
[342991556,1732265436779,-500.0,0.0009863,120]
[342991557,1732265436789,-500.0,0.0009863,120]
[342991558,1732265436800,-500.0,0.0009863,120]
[342991559,1732265436809,-500.0,0.0009863,120]
[342991560,1732265436819,-500.0,0.0009863,120]
[342991561,1732265436828,-500.0,0.0009863,120]
[342991562,1732265436837,-500.0,0.0009863,120]
[342991563,1732265436847,-500.0,0.0009863,120]
[342991564,1732265436856,-500.0,0.0009863,120]
[342991565,1732265436865,-500.0,0.0009863,120]
[342991566,1732265436874,-500.0,0.0009863,120]
[342991567,1732265436883,-254.51015066,0.0009863,120]
[342991568,1732265436892,-503.38,0.0009863,120]
[342991569,1732265436902,-500.0,0.0009863,120]
[342991570,1732265436911,-401.69,0.0009863,120]
[342991571,1732265436920,-500.0,0.0009863,120]
[342991572,1732265436929,-500.0,0.0009863,120]
[342991573,1732265436938,-499.52010961,0.0009863,120]
[342991574,1732265436947,-500.0,0.0009863,120]
[342991575,1732265436961,-500.0,0.0009863,120]
[342991576,1732265436970,-500.66049389,0.0009863,120]
[342991577,1732265436980,-500.0,0.0009863,120]
[342991578,1732265436989,-500.0,0.0009863,120]
[342991579,1732265437002,-543.24,0.0009863,120]
[342991580,1732265437011,-584.8,0.0009863,120]
[342991581,1732265437020,-584.8,0.0009863,120]
[342991582,1732265437031,-500.0,0.0009863,120]
[342991583,1732265437041,-501.45724107,0.0009863,120]
[342991584,1732265437052,-500.0,0.0009863,120]
[342991585,1732265437062,-500.0,0.0009863,120]
[342991586,1732265437072,-505.35244138,0.0009863,120]
[342991587,1732265437082,-500.0,0.0009863,120]
[342991588,1732265437091,-500.0,0.0009863,120]
[342991589,1732265437101,-500.0,0.0009863,120]
[342991590,1732265437110,-500.0,0.0009863,120]
[342991591,1732265437119,-500.0,0.0009863,120]
[342991592,1732265437128,-500.0,0.0009863,120]
[342991593,1732265437138,-500.0,0.0009863,120]
[342991594,1732265437147,-500.0,0.0009863,120]
[342991595,1732265437157,-500.0,0.0009863,120]
[342991596,1732265437166,-500.0,0.0009863,120]
[342991597,1732265437175,-561.46,0.0009863,120]
[342991598,1732265437184,-238.79916532,0.0009863,120]
[342991599,1732265437193,-500.0,0.0009863,120]
[342991600,1732265437202,-500.0,0.0009863,120]
[342991601,1732265437211,-500.0,0.0009863,120]
[342991602,1732265437221,-500.0,0.0009863,120]
[342991603,1732265437230,-500.0,0.0009863,120]
[342991604,1732265437239,-395.87,0.0009863,120]
[342991605,1732265437249,-500.0,0.0009863,120]
[342991606,1732265437258,-500.0,0.0009863,120]
[342991607,1732265437267,-500.0,0.0009863,120]
[342991608,1732265437276,-154.32109883,0.0009863,120]
[342991609,1732265437286,-500.0,0.0009863,120]
[342991610,1732265437296,-503.04,0.0009863,120]
[342991611,1732265437305,-272.52602308,0.0009863,120]
[342991612,1732265437316,-500.0,0.0009863,120]
[342991613,1732265437325,-4677.57,0.0009863,120]
[342991614,1732265437335,-181.60000005,0.0009863,120]
[342991615,1732265437344,-500.0,0.0009863,120]
[342991616,1732265437355,-437.87473674,0.0009863,120]
[342991617,1732265437364,-431.66139737,0.0009863,120]
[342991618,1732265437374,-500.0,0.0009863,120]
[342991619,1732265437384,-500.0,0.0009863,120]
[342991620,1732265437394,-184.3506447,0.0009863,120]
[342991621,1732265437403,-964.7,0.0009863,120]
[342991622,1732265437412,-964.7,0.0009863,120]
[342991623,1732265437421,-210.47687465,0.0009863,120]
[342991624,1732265437431,-500.0,0.0009863,120]
[342991625,1732265437440,-500.0,0.0009863,120]
[342991626,1732265437450,-500.0,0.0009863,120]
[342991627,1732265437459,-500.0,0.0009863,120]
[342991628,1732265437469,-584.68261707,0.0009863,120]
[342991629,1732265437479,-500.0,0.0009863,120]
[342991630,1732265437488,-500.0,0.0009863,120]
[342991631,1732265437498,-500.0,0.0009863,120]
[342991632,1732265437507,-500.0,0.0009863,7]
[342991633,1732265437516,-500.0,0.0009863,120]
[342991634,1732265437525,-500.0,0.0009863,120]
[342991635,1732265437535,-500.0,0.0009863,120]
[342991636,1732265437546,-500.0,0.0009863,120]
[342991637,1732265437555,-500.0,0.0009863,120]
[342991638,1732265437565,-572.13838481,0.0009863,120]
[342991639,1732265437575,-196.82507794,0.0009863,120]
[342991640,1732265437584,-296.19678408,0.0009863,120]
[342991641,1732265437593,-500.0,0.0009863,120]
[342991642,1732265437603,-500.0,0.0009863,120]
[342991643,1732265437613,-501.72728569,0.0009863,120]
[342991644,1732265437622,-715.09,0.0009863,120]
[342991645,1732265437631,-715.09,0.0009863,120]
[342991646,1732265437641,-500.0,0.0009863,120]
[342991647,1732265437651,-500.0,0.0009863,120]
[342991648,1732265437661,-500.0,0.0009863,120]
[342991649,1732265437671,-601.25362383,0.0009863,120]
[342991650,1732265437680,-500.0,0.0009863,120]
[342991651,1732265437689,-165.915,0.0009863,120]
[342991653,1732265437699,-500.0,0.0009863,120]
[342991654,1732265437708,-429.62252035,0.0009863,120]
[342991655,1732265437717,-500.0,0.0009863,120]
[342991657,1732265437727,-500.0,0.0009863,120]
[342991658,1732265437736,-500.0,0.0009863,120]
[342991660,1732265437746,-500.0,0.0009863,120]
[342991663,1732265437757,-500.0,0.0009863,120]
[342991665,1732265437768,-500.0,0.0009863,120]
[342991666,1732265437778,-1000.0,0.0009863,120]
[342991667,1732265437787,-500.0,0.0009863,120]
[342991668,1732265437798,-500.0,0.0009863,120]
[342991669,1732265437807,-435.71240222,0.00098644,120]
[342991671,1732265437817,-804.71147586,0.00098699,120]
[342991673,1732265437826,-500.0,0.000987,120]
[342991674,1732265437835,-500.0,0.000987,120]
[342991675,1732265437844,-413.6273405,0.00098732,92]
[342991676,1732265437854,-201.5955293,0.00098761,120]
[342991677,1732265437863,-2500.0,0.00098799,120]
[342991678,1732265437872,-10238.00220101,0.000988,120]
[342991679,1732265437881,-435.71240222,0.00098832,120]
[342991680,1732265437890,-1000.0,0.00098898,120]
[342991681,1732265437899,-500.0,0.00098899,120]
[342991682,1732265437908,-500.0,0.00098899,120]
[342991683,1732265437917,-500.0,0.00098899,120]
[342991684,1732265437926,-500.0,0.00098899,120]
[342991685,1732265437936,-460.47,0.00098899,120]
[342991687,1732265437950,-500.0,0.00098899,120]
[342991688,1732265437963,-500.0,0.00098899,120]
[342991689,1732265437972,-500.0,0.00098899,120]
[342991690,1732265437981,-235.27,0.00098899,120]
[342991691,1732265437991,-500.0,0.00098899,120]
[342991692,1732265438077,-276.77,0.00098899,120]
[342991693,1732265438087,-402.56,0.00098899,120]
[342991694,1732265438096,-386.06,0.00098899,120]
[342991695,1732265438106,-442.15,0.00098899,120]
[342991696,1732265438116,-345.74,0.00098899,120]
[342991697,1732265438125,-500.0,0.00098899,120]
[342991698,1732265438134,-600.0,0.000989,36]
[342991699,1732265438143,-1008.0,0.000989,21]
[342991700,1732265438152,-500.0,0.00098996,120]
[342991701,1732265438161,-500.0,0.00098996,120]
[342991702,1732265438170,-500.0,0.00098996,120]
[342991703,1732265438180,-186.15965148,0.00098998,120]
[342991704,1732265438190,-1967570.69426189,0.00099,45]
[342991705,1732265438277,-2570615.79558685,0.00099,45]
[342991706,1732265438289,-280.0,0.00099,45]
[342991707,1732265438323,-707.62451125,0.00086785,30]
[342991708,1732265438335,-1092.88548875,0.00086785,30]
[342991709,1732265438344,-1899.2593473,0.0009,120]
[342991710,1732265438355,-1466.81039955,0.0009,120]
[342991711,1732265438366,-1633.93025315,0.0009,120]
[342991712,1732265438375,-320.13756821,0.0009579,2]
[342991714,1732265438384,-474.86048263,0.0009863,120]
[342991716,1732265438393,-52.79726101,0.00099,45]
[342991721,1732265438459,-345362.68086707,0.00099,45]
[342991722,1732265438471,-921.0020001,0.00099,45]
[342991723,1732265438482,-117450.02940006,0.00099,45]
[342991724,1732265438493,-56568.50380446,0.00099,45]
[342991725,1732265438505,-5216.90032934,0.00099,45]
[342991728,1732265438558,-204406.20950436,0.00099,45]
[342991730,1732265438569,-329.04481697,0.00099,45]
[342991731,1732265438597,-19668.34272638,0.00099,45]
[342991732,1732265438659,-78687.0373266,0.00099,45]
[342991733,1732265438670,-6958.92304938,0.00099,45]
[342991734,1732265439944,-1167.02,0.00099,45]
[342991735,1732265439958,-3745.81,0.00099,45]
[342991736,1732265439978,-31307.15616876,0.00099,45]
[342991737,1732265440065,-3999.97111235,0.00099,45]
[342991738,1732265440076,-2998.0110708,0.00099,45]
[342991739,1732265440112,-10326.91338912,0.00099,45]
[342991740,1732265440123,-72913.42999998,0.00099,45]
[342991741,1732265440169,-2768.59999,0.00099,45]
[342991754,1732265442920,-500.0,0.0009863,120]
[342991755,1732265442930,-98450.84642746,0.00099,45]
[342991756,1732265442976,-5471.4829741,0.00099,45]
[342991757,1732265442988,-7399.33087793,0.00099,45]
[342991758,1732265443001,-2763.890775,0.00099,45]
[342991759,1732265443013,-49371.65959061,0.00099,45]
[342991760,1732265443091,-9550.16167313,0.00099,45]
[342991761,1732265443304,-13905.50532318,0.00099,45]
[342991762,1732265443316,-2423.2909153,0.00099,45]
[342991763,1732265443351,-19735.6,0.00099,45]
[342991779,1732265446049,-1153.29981504,0.00099,45]
[342991780,1732265446060,-1386.400004,0.00099,45]
[342991781,1732265446071,-1267.91468036,0.00099,45]
[342991782,1732265446081,-1306.24300005,0.00099,45]
[342991783,1732265446093,-1561.58,0.00099,45]
[342991784,1732265446105,-2626.8771952,0.00099,45]
[342991785,1732265446117,-811.55989501,0.00099,45]
[342991786,1732265446169,-1065.15056832,0.00099,45]
[342991787,1732265446181,-4472.044988,0.00099,45]
[342991788,1732265446193,-1000.0,0.00099,45]
[342991789,1732265446217,-723.63000001,0.00099,45]
[342991790,1732265446304,-98256.23582704,0.00099,45]
[342991819,1732266168010,250.0,0.00031,2]
[342991820,1732266169059,300.0,0.00033,2]
[342991821,1732266404109,-399.0,0.00035,90]
[342991822,1732266404131,-423.96758438,0.00040996,2]
[342991823,1732266404154,-161.88,0.00041096,2]
[342991824,1732266404177,-157.58610831,0.000498,120]
[342991825,1732266438092,-152.01099454,0.00049799,5]
[342991826,1732266469269,156615.32683323,0.00032388,2]
[342991827,1732266546117,-198.0,0.00049799,5]
[342991828,1732266546138,-7799.70313948,0.000498,120]
[342991829,1732266546158,-1372.98563448,0.000498,120]
[342991830,1732266546177,-220.0,0.000536,2]
[342991831,1732266546202,-500.0,0.00054795,120]
[342991832,1732266552097,-150.0,0.00060882,30]
[342991833,1732266552118,-1102.0,0.000659,20]
[342991834,1732266552140,-152.23,0.000663,66]
[342991835,1732266552162,-152.23,0.000663,66]
[342991836,1732266552183,-1.61571269,0.00069,120]
[342991842,1732266561120,-623.79422862,0.00069,120]
[342991843,1732266574159,-178.060366,0.00069,120]
[342991852,1732266628703,500.0,0.00054795,2]
[342991856,1732266632112,-441.50761031,0.00069,120]
[342991857,1732266632174,-4862.38193416,0.00069,120]
[342991858,1732266632186,-1231.8888,0.00069,120]
[342991859,1732266632197,-2660.75134822,0.00069,120]
[342991860,1732266632207,-41.26982715,0.00071453,2]
[342991861,1732266632218,-374.94379054,0.00071453,2]
[342991862,1732266635538,-16.89011055,0.00071453,2]
[342991863,1732266635550,-561.75930824,0.00071453,2]
[342991864,1732266635561,-957.46116352,0.00071453,2]
[342991865,1732266635570,-1376.99482985,0.00071453,2]
[342991866,1732266635582,-1528.23,0.00071453,2]
[342991867,1732266635595,-721.83,0.00071453,2]
[342991868,1732266635607,-5675.80977015,0.00071453,2]
[342991869,1732266635616,-8307.97684029,0.00077266,2]
[342991870,1732266635626,-289.311,0.00077266,120]
[342991871,1732266635635,-3348.79522082,0.00077266,2]
[342991872,1732266635691,-378.44184,0.00077266,2]
[342991873,1732266635702,-625.55513918,0.00077266,2]
[342991874,1732266635711,-2600.5605,0.00077266,2]
[342991875,1732266635720,-10000.0,0.00079,120]
[342991876,1732266635730,-32974.626,0.00084409,120]
[342991877,1732266635739,-5202.5938,0.00084409,31]
[342991878,1732266635748,-882.0,0.000877,70]
[342991879,1732266635757,-156.94,0.00088015,2]
[342991880,1732266635874,-1527.0,0.00089,120]
[342991881,1732266635884,-161.88,0.00089041,120]
[342991882,1732266635893,-1840.73,0.00089121,30]
[342991883,1732266635902,-190.29,0.00089475,120]
[342991884,1732266635912,-160.0,0.0009,120]
[342991885,1732266635921,-1000.0,0.0009,120]
[342991886,1732266635931,-1000.0,0.0009001,120]
[342991888,1732266635940,-150.21,0.00090044,120]
[342991890,1732266635949,-541.0,0.00090224,30]
[342991892,1732266635959,-250.0,0.0009035,120]
[342991893,1732266635968,-156.94,0.00090405,2]
[342991894,1732266635977,-2706.82,0.00090652,120]
[342991895,1732266635986,-702.32,0.00090709,120]
[342991896,1732266635995,-2367.6731,0.00090831,2]
[342991897,1732266636004,-2022.2868,0.00090831,2]
[342991898,1732266636013,-483.52760329,0.00090831,15]
[342991899,1732266636023,-23900.0,0.00090931,30]
[342991900,1732266636032,-2000.0,0.00090931,120]
[342991901,1732266636042,-1527.17962277,0.000918,120]
[342991902,1732266636051,-483.52760321,0.00091839,15]
[342991903,1732266636060,-991.76,0.00092604,120]
[342991904,1732266636070,-156.94,0.00092794,2]
[342991905,1732266636079,-483.52760321,0.00092846,15]
[342991906,1732266636088,-517.13590268,0.0009315,120]
[342991907,1732266636099,-500.0,0.0009315,120]
[342991908,1732266636112,-500.0,0.0009315,120]
[342991909,1732266636121,-500.0,0.0009315,20]
[342991910,1732266636130,-500.0,0.0009315,120]
[342991911,1732266636140,-500.0,0.0009315,120]
[342991912,1732266636149,-768.85,0.0009315,120]
[342991913,1732266636159,-500.0,0.0009315,120]
[342991914,1732266636168,-500.0,0.0009315,120]
[342991915,1732266636178,-500.0,0.0009315,120]
[342991916,1732266636187,-500.0,0.0009315,120]
[342991917,1732266636196,-500.0,0.0009315,120]
[342991918,1732266636206,-500.0,0.0009315,120]
[342991919,1732266636216,-483.52760321,0.00093854,15]
[342991920,1732266636225,-500.0,0.00094299,120]
[342991921,1732266636235,-500.0,0.00094299,120]
[342991922,1732266636244,-500.0,0.00094299,120]
[342991923,1732266636254,-500.0,0.00094299,120]
[342991924,1732266636263,-500.0,0.00094299,120]
[342991925,1732266636273,-500.0,0.00094299,120]
[342991926,1732266636282,-500.0,0.00094299,120]
[342991927,1732266636292,-500.0,0.00094299,120]
[342991928,1732266636305,-483.52760321,0.00094862,15]
[342991929,1732266636314,-156.94,0.00095184,2]
[342991930,1732266636323,-250.0,0.00095601,120]
[342991931,1732266636332,-1000.0,0.000957,120]
[342991932,1732266636342,-6280.54584951,0.0009579,15]
[342991933,1732266636352,-157.86,0.0009582,120]
[342991934,1732266636361,-396.39,0.00095859,120]
[342991935,1732266636371,-483.52760321,0.00095869,15]
[342991936,1732266636380,-500.0,0.0009589,120]
[342991937,1732266636390,-153.0,0.0009589,120]
[342991938,1732266636399,-153.0,0.0009589,120]
[342991939,1732266636408,-153.0,0.0009589,120]
[342991940,1732266636417,-153.0,0.0009589,120]
[342991941,1732266636426,-153.0,0.0009589,120]
[342991942,1732266636435,-153.0,0.0009589,120]
[342991943,1732266636445,-153.0,0.0009589,120]
[342991944,1732266636454,-153.0,0.0009589,120]
[342991945,1732266636463,-153.0,0.0009589,120]